bitfinex-derivatives/quotes_BTCF0:USTF0_20241104
["timestamp","ask_amount","ask_price","bid_price","bid_amount"]
[1730715348664,0.15081857,68862.0,68861.0,0.072664]
[1730715348970,0.16481857,68862.0,68861.0,0.073664]
[1730715349168,0.09215557,68862.0,68861.0,0.073664]
[1730715349480,0.10215557,68862.0,68861.0,0.074664]
[1730715349975,0.06016561,68862.0,68861.0,0.21430584]
[1730715351074,0.04616561,68862.0,68861.0,0.21430584]
[1730715351268,0.03616561,68862.0,68861.0,0.21330584]
[1730715351476,0.03616561,68862.0,68861.0,0.21430584]
[1730715351770,0.433456,68869.0,68868.0,0.072657]
[1730715351977,0.46973161,68869.0,68868.0,0.072657]
[1730715352172,0.03627561,68869.0,68868.0,0.072657]
[1730715352365,0.00217871,68876.0,68868.0,0.072657]
[1730715352560,0.00217871,68876.0,68875.0,0.072649]
[1730715352773,0.03891897,68876.0,68875.0,0.433449]
[1730715353478,0.3608,68886.0,68885.0,0.072639]
[1730715353479,0.433438,68886.0,68885.0,0.072639]
[1730715353681,0.51379379,68886.0,68885.0,0.03617472]
[1730715354265,0.47062173,68886.0,68885.0,0.03617472]
[1730715354972,0.10982173,68886.0,68885.0,0.03617472]
[1730715355180,0.10917308,68886.0,68885.0,0.03617472]
[1730715355577,0.072638,68886.0,68885.0,0.03717472]
[1730715356689,0.072634,68890.0,68889.0,0.072633]
[1730715357872,0.3608,68895.0,68888.0,0.13964184]
[1730715358075,0.03967791,68900.0,68894.0,0.50044184]
[1730715358076,0.00217791,68900.0,68894.0,0.50044184]
[1730715358283,0.00217791,68900.0,68899.0,0.072624]
[1730715358494,0.00217791,68900.0,68899.0,0.21226584]
[1730715360270,0.00417791,68900.0,68899.0,0.21226584]
[1730715360471,0.00417791,68900.0,68899.0,0.072624]
[1730715360676,0.00417791,68900.0,68896.0,0.3608]
[1730715360677,0.072626,68897.0,68896.0,0.3608]
[1730715360879,0.072628,68895.0,68894.0,0.3608]
[1730715362184,0.072628,68895.0,68894.0,0.3618]
[1730715363486,0.072626,68897.0,68894.0,0.50144184]
[1730715363689,0.0782,68908.0,68899.0,0.072624]
[1730715363880,0.00217791,68900.0,68899.0,0.21226584]
[1730715364891,0.00217791,68900.0,68899.0,0.072624]
[1730715365092,0.00317791,68900.0,68895.0,0.24996884]
[1730715365384,0.00317791,68900.0,68894.0,0.57307084]
[1730715365385,0.072628,68895.0,68894.0,0.57307084]
[1730715365685,0.00317791,68900.0,68899.0,0.072624]
[1730715365889,0.00317791,68900.0,68899.0,0.21226584]
[1730715366689,0.00217791,68900.0,68899.0,0.21226584]
[1730715366885,0.00217791,68900.0,68899.0,0.072624]
[1730715367093,0.07480091,68900.0,68899.0,0.072624]
[1730715367393,0.07580091,68900.0,68899.0,0.072624]
[1730715367886,0.00317791,68900.0,68895.0,0.21226984]
[1730715368086,0.072627,68896.0,68895.0,0.21226984]
[1730715368481,0.00317791,68900.0,68894.0,0.3608]
[1730715368678,0.072628,68895.0,68894.0,0.3608]
[1730715368890,0.072628,68895.0,68894.0,0.433429]
[1730715369290,0.072628,68895.0,68894.0,0.57307084]
[1730715369887,0.00317791,68900.0,68894.0,0.50044184]
[1730715370084,0.072625,68898.0,68897.0,0.072625]
[1730715371887,0.072628,68895.0,68894.0,0.36288]
[1730715372095,0.072628,68895.0,68894.0,0.3608]
[1730715372798,0.072642,68883.0,68878.0,0.13964184]
[1730715372983,0.072642,68883.0,68882.0,0.072642]
[1730715373290,0.072643,68881.0,68880.0,0.40530474]
[1730715373509,0.072643,68881.0,68880.0,0.3608]
[1730715374189,0.072643,68881.0,68880.0,0.3748]
[1730715375679,0.072643,68881.0,68880.0,0.3608]
[1730715375893,0.072643,68881.0,68880.0,0.3748]
[1730715376484,0.072643,68881.0,68880.0,0.461444]
[1730715379195,0.072643,68881.0,68880.0,0.3888]
[1730715379497,0.3608,68891.0,68880.0,0.3888]
[1730715379687,0.00217791,68900.0,68890.0,0.13964184]
[1730715379887,0.00217791,68900.0,68887.0,0.05767731]
[1730715379888,0.07480191,68900.0,68899.0,0.072624]
[1730715380592,0.072613,68910.0,68899.0,0.09283516]
[1730715380899,0.072617,68906.0,68905.0,0.05763749]
[1730715381700,0.072621,68902.0,68901.0,0.07204686]
[1730715381998,0.072623,68900.0,68899.0,0.073624]
[1730715382297,0.072623,68900.0,68899.0,0.11685634]
[1730715382602,0.072623,68900.0,68899.0,0.1889032]
[1730715382897,0.072623,68900.0,68899.0,0.11585634]
[1730715383098,0.072623,68900.0,68899.0,0.1879032]
[1730715383299,0.072623,68900.0,68899.0,0.1889032]
[1730715383499,0.072623,68900.0,68899.0,0.07304686]
[1730715383798,0.072623,68900.0,68899.0,0.001]
[1730715384095,0.072623,68900.0,68899.0,0.14467086]
[1730715384299,0.072623,68900.0,68899.0,0.07204686]
[1730715384697,0.433413,68910.0,68898.0,0.5746087]
[1730715385004,0.072624,68899.0,68898.0,0.6451137]
[1730715385194,0.072624,68899.0,68898.0,0.73802721]
[1730715385394,0.07262,68904.0,68903.0,0.072619]
[1730715385594,0.3608,68910.0,68898.0,0.66540221]
[1730715385595,0.072622,68902.0,68901.0,0.072621]
[1730715386494,0.072622,68902.0,68901.0,0.14466786]
[1730715386804,0.072618,68905.0,68901.0,0.07204686]
[1730715386993,0.072618,68905.0,68898.0,0.50344184]
[1730715386994,0.072616,68909.0,68908.0,0.072614]
[1730715387191,0.072617,68906.0,68905.0,0.2843067]
[1730715387490,0.072619,68904.0,68902.0,0.07204686]
[1730715387697,0.3608,68909.0,68901.0,0.07204686]
[1730715387998,0.3608,68909.0,68905.0,0.05766693]
[1730715388302,0.072617,68906.0,68905.0,0.05766693]
[1730715388491,0.072617,68906.0,68905.0,0.13028493]
[1730715388693,0.072617,68906.0,68905.0,0.05766693]
[1730715389191,0.072617,68906.0,68905.0,0.05866693]
[1730715389896,0.072617,68906.0,68905.0,0.002]
[1730715390094,0.072617,68906.0,68905.0,0.074618]
[1730715390300,0.072613,68910.0,68909.0,0.07261]
[1730715392295,0.072613,68910.0,68909.0,0.07361]
[1730715392501,0.072613,68910.0,68909.0,0.07461]
[1730715393403,0.3608,68915.0,68909.0,0.002]
[1730715393602,0.072612,68913.0,68912.0,0.21225084]
[1730715393808,0.3608,68915.0,68907.0,0.09799054]
[1730715393809,0.18902929,68914.0,68907.0,0.09799054]
[1730715394103,0.072613,68910.0,68909.0,0.072612]
[1730715394290,0.16561963,68910.0,68909.0,0.072612]
[1730715394495,0.20307487,68910.0,68909.0,0.072612]
[1730715395510,0.20307487,68910.0,68909.0,0.073612]
[1730715395698,0.19960687,68910.0,68909.0,0.073612]
[1730715396094,0.20060687,68910.0,68909.0,0.073612]
[1730715396296,0.20160687,68910.0,68909.0,0.074612]
[1730715399199,0.15340388,68910.0,68909.0,0.074612]
[1730715400312,0.15340388,68910.0,68909.0,0.11089173]
[1730715400604,0.15340388,68910.0,68909.0,0.03827973]
[1730715401407,0.072597,68925.0,68923.0,0.072599]
[1730715401612,0.15893876,68927.0,68923.0,0.21224084]
[1730715401613,0.07477529,68924.0,68923.0,0.21224084]
[1730715403003,0.07577529,68924.0,68923.0,0.21324084]
[1730715403204,0.07577529,68924.0,68923.0,0.21424084]
[1730715403205,0.07677529,68924.0,68923.0,0.21424084]
[1730715407301,0.07677529,68924.0,68923.0,0.27186599]
[1730715407516,0.07677529,68924.0,68923.0,0.21424084]
[1730715407919,0.07677529,68924.0,68923.0,0.21324084]
[1730715407920,0.07577529,68924.0,68923.0,0.21324084]
[1730715408103,0.07577529,68924.0,68923.0,0.21424084]
[1730715408299,0.07477529,68924.0,68923.0,0.21324084]
[1730715408505,0.07477529,68924.0,68923.0,0.21424084]
[1730715408711,0.07477529,68924.0,68923.0,0.27181487]
[1730715408907,0.05050197,68924.0,68923.0,0.13964184]
[1730715409108,0.05050197,68924.0,68923.0,0.21324084]
[1730715409309,0.12309997,68924.0,68923.0,0.21324084]
[1730715409608,0.22290403,68924.0,68923.0,0.21424084]
[1730715410824,0.15030603,68924.0,68923.0,0.21424084]
[1730715411123,0.09315156,68924.0,68923.0,0.21424084]
[1730715411314,0.20407465,68924.0,68923.0,0.21424084]
[1730715411508,0.23898636,68924.0,68923.0,0.25074084]
[1730715411715,0.12389784,68924.0,68923.0,0.25074084]
[1730715412315,0.2831268,68924.0,68923.0,0.25074084]
[1730715412818,0.18105231,68924.0,68923.0,0.25074084]
[1730715413018,0.12389784,68924.0,68923.0,0.25074084]
[1730715413605,0.19649584,68924.0,68923.0,0.074599]
[1730715413809,0.19649584,68924.0,68923.0,0.21424084]
[1730715414623,0.12389784,68924.0,68923.0,0.21324084]
[1730715414925,0.12589784,68924.0,68923.0,0.21424084]
[1730715415313,0.12489784,68924.0,68923.0,0.21324084]
[1730715415513,0.12589784,68924.0,68923.0,0.24834084]
[1730715416722,0.12372055,68924.0,68923.0,0.24834084]
[1730715416924,0.002,68924.0,68923.0,0.24834084]
[1730715421340,0.002,68924.0,68923.0,0.21424084]
[1730715423032,0.074598,68924.0,68923.0,0.21424084]
[1730715423230,0.435398,68924.0,68923.0,0.002]
[1730715423927,0.5099011,68924.0,68923.0,0.002]
[1730715428143,0.51096773,68924.0,68923.0,0.002]
[1730715429242,0.51096773,68924.0,68923.0,0.03827236]
[1730715431133,0.15016773,68924.0,68923.0,0.03827236]
[1730715431334,0.51096773,68924.0,68923.0,0.03827236]
[1730715431939,0.435398,68924.0,68923.0,0.03827236]
[1730715432145,0.435398,68924.0,68914.0,0.08721029]
[1730715432146,0.072601,68921.0,68919.0,0.07208044]
[1730715432342,0.072612,68910.0,68908.0,0.08721029]
[1730715432549,0.072612,68910.0,68904.0,0.08721029]
[1730715432550,0.433412,68910.0,68904.0,0.08721029]
[1730715432751,0.433412,68910.0,68903.0,0.08721029]
[1730715433042,0.072621,68902.0,68901.0,0.00217711]
[1730715433253,0.433421,68902.0,68901.0,0.00217711]
[1730715433450,1.073421,68902.0,68901.0,0.00217711]
[1730715433948,0.072627,68896.0,68895.0,0.0433279]
[1730715434255,0.072627,68896.0,68895.0,0.09493002]
[1730715434543,0.072627,68896.0,68887.0,0.29948913]
[1730715434544,0.433427,68896.0,68887.0,0.29948913]
[1730715434765,0.433434,68889.0,68888.0,0.09506653]
[1730715435244,0.3608,68889.0,68884.0,0.15985029]
[1730715435542,0.03635406,68886.0,68885.0,0.0950893]
[1730715435751,0.3608,68889.0,68885.0,0.0950893]
[1730715435752,0.3608,68889.0,68887.0,0.014]
[1730715435933,0.072636,68888.0,68887.0,0.014]
[1730715436248,0.3608,68896.0,68887.0,0.014]
[1730715436553,0.433427,68896.0,68895.0,0.21226984]
[1730715436745,0.433427,68896.0,68895.0,0.072628]
[1730715436936,0.433427,68896.0,68891.0,0.072631]
[1730715436937,0.072632,68892.0,68891.0,0.072631]
[1730715437138,0.433427,68896.0,68895.0,0.072628]
[1730715437342,0.433427,68896.0,68895.0,0.21226984]
[1730715437540,0.3608,68896.0,68895.0,0.21226984]
[1730715437734,0.3608,68904.0,68895.0,0.21226984]
[1730715438038,0.072623,68900.0,68899.0,0.11576124]
[1730715439043,0.072623,68900.0,68899.0,0.072624]
[1730715439346,0.075623,68900.0,68899.0,0.072624]
[1730715440051,0.072621,68902.0,68901.0,0.072621]
[1730715441143,0.073621,68902.0,68901.0,0.080621]
[1730715441956,0.072623,68900.0,68899.0,0.014]
[1730715442249,0.072623,68900.0,68897.0,0.072626]
[1730715442250,0.072624,68899.0,68898.0,0.072625]
[1730715443451,0.001,68902.0,68898.0,0.072625]
[1730715443655,0.002,68902.0,68901.0,0.082622]
[1730715443950,0.074621,68902.0,68901.0,0.082622]
[1730715444347,0.073621,68902.0,68901.0,0.072622]
[1730715445053,0.072621,68902.0,68901.0,0.072622]
[1730715445855,0.001,68902.0,68901.0,0.22626384]
[1730715446056,0.001,68902.0,68901.0,0.58706384]
[1730715446352,0.072617,68906.0,68905.0,0.072617]
[1730715447453,0.3608,68907.0,68901.0,0.16964184]
[1730715447751,0.3608,68907.0,68901.0,0.028]
[1730715448158,0.072621,68902.0,68901.0,0.086621]
[1730715448346,0.072621,68902.0,68901.0,0.014]
[1730715448743,0.072621,68902.0,68901.0,0.086622]
[1730715448958,0.072621,68902.0,68901.0,0.072622]
[1730715449159,0.002,68906.0,68898.0,0.3608]
[1730715449563,0.072624,68899.0,68898.0,0.3608]
[1730715449750,0.072624,68899.0,68898.0,0.433425]
[1730715451656,0.07262,68904.0,68903.0,0.072618]
[1730715452966,0.07262,68904.0,68903.0,0.085618]
[1730715452967,0.07362,68904.0,68903.0,0.085618]
[1730715453455,0.001,68904.0,68903.0,0.085618]
[1730715453769,0.3608,68907.0,68906.0,0.072617]
[1730715453958,0.3608,68907.0,68906.0,0.30634048]
[1730715454473,0.072615,68907.0,68906.0,0.09408164]
[1730715454661,0.072619,68904.0,68903.0,0.014]
[1730715454971,0.21326084,68904.0,68903.0,0.025]
[1730715455261,0.64866084,68904.0,68903.0,0.011]
[1730715456263,0.073619,68904.0,68903.0,0.025]
[1730715456466,0.073619,68904.0,68903.0,0.014]
[1730715457453,0.075619,68904.0,68903.0,0.014]
[1730715458168,0.073619,68904.0,68903.0,0.014]
[1730715458358,0.082619,68904.0,68903.0,0.015]
[1730715458764,0.082619,68904.0,68903.0,0.05819431]
[1730715459066,0.081619,68904.0,68903.0,0.04419431]
[1730715459562,0.081619,68904.0,68903.0,0.04421345]
[1730715459954,0.086619,68904.0,68903.0,0.04421345]
[1730715460252,0.077619,68904.0,68903.0,0.04321345]
[1730715460456,0.083619,68904.0,68903.0,0.001]
[1730715460759,0.519019,68904.0,68903.0,0.001]
[1730715461257,0.072627,68896.0,68895.0,0.072628]
[1730715461454,0.072627,68896.0,68895.0,0.16715339]
[1730715462161,0.072627,68896.0,68895.0,0.072628]
[1730715463266,0.072627,68896.0,68891.0,0.04465847]
[1730715463473,0.072631,68892.0,68891.0,0.07263]
[1730715464676,0.073631,68892.0,68891.0,0.08663]
[1730715465871,0.074631,68892.0,68891.0,0.10063]
[1730715466568,0.002,68892.0,68891.0,0.10063]
[1730715466768,0.002,68892.0,68891.0,0.53611]
[1730715466968,0.3608,68908.0,68904.0,0.13964184]
[1730715466969,0.072617,68906.0,68904.0,0.13964184]
[1730715467173,0.3608,68908.0,68907.0,0.072615]
[1730715468172,0.433414,68908.0,68907.0,0.072615]
[1730715469067,0.433414,68908.0,68907.0,0.16638647]
[1730715469267,0.441414,68908.0,68907.0,0.16738647]
[1730715470267,0.433414,68908.0,68907.0,0.16638647]
[1730715470464,0.072614,68908.0,68907.0,0.16638647]
[1730715470675,0.072614,68908.0,68907.0,0.20957078]
[1730715470869,0.3608,68916.0,68909.0,0.072613]
[1730715470870,0.072612,68911.0,68909.0,0.072613]
[1730715471064,0.072612,68911.0,68909.0,0.16638447]
[1730715471270,0.07478975,68910.0,68909.0,0.16638447]
[1730715471677,0.00217775,68910.0,68909.0,0.16638447]
[1730715471977,0.00617775,68910.0,68909.0,0.16638447]
[1730715472376,0.00817775,68910.0,68909.0,0.16638447]
[1730715472574,0.00817775,68910.0,68909.0,0.30587126]
[1730715473079,0.433397,68925.0,68909.0,0.66667126]
[1730715473080,0.072602,68921.0,68909.0,0.66667126]
[1730715473280,0.072602,68921.0,68920.0,0.072602]
[1730715475176,0.081602,68921.0,68920.0,0.072602]
[1730715475579,0.087602,68921.0,68920.0,0.073602]
[1730715475885,0.087602,68921.0,68920.0,0.001]
[1730715476083,0.22724384,68921.0,68920.0,0.001]
[1730715476287,0.22724384,68921.0,68910.0,0.072612]
[1730715476288,0.072611,68911.0,68910.0,0.07192845]
[1730715476473,0.072612,68910.0,68909.0,0.001]
[1730715476973,0.3608,68911.0,68907.0,0.072615]
[1730715476974,0.072614,68908.0,68907.0,0.072615]
[1730715477382,0.3608,68911.0,68910.0,0.072612]
[1730715477676,0.13964184,68930.0,68914.0,0.072608]
[1730715477677,0.072607,68915.0,68914.0,0.072608]
[1730715479290,0.079607,68915.0,68914.0,0.073608]
[1730715480282,0.013,68915.0,68914.0,0.074608]
[1730715481884,0.013,68915.0,68914.0,0.11755598]
[1730715483385,0.085607,68915.0,68914.0,0.11755598]
[1730715484677,0.013,68915.0,68914.0,0.11755598]
[1730715485789,0.085607,68915.0,68914.0,0.11755598]
[1730715486288,0.1224136,68915.0,68914.0,0.11755598]
[1730715486489,0.1224136,68915.0,68894.0,0.072629]
[1730715486490,0.12226881,68915.0,68894.0,0.13964184]
[1730715486793,0.12226881,68915.0,68889.0,0.13964184]
[1730715486794,0.3608,68906.0,68889.0,0.13964184]
[1730715486973,0.072632,68892.0,68891.0,0.072631]
[1730715488688,0.073632,68892.0,68891.0,0.086631]
[1730715489992,0.074632,68892.0,68891.0,0.100631]
[1730715490487,0.001,68892.0,68891.0,0.086631]
[1730715490683,0.002,68892.0,68891.0,0.100631]
[1730715491087,0.074631,68892.0,68891.0,0.100631]
[1730715491479,0.073631,68892.0,68891.0,0.086631]
[1730715491697,0.074631,68892.0,68891.0,0.100631]
[1730715492397,0.002,68892.0,68891.0,0.100631]
[1730715493079,0.0349,68914.0,68904.0,0.072618]
[1730715493387,0.433418,68905.0,68904.0,0.072618]
[1730715494286,0.433418,68905.0,68904.0,0.073618]
[1730715494487,0.433418,68905.0,68904.0,0.001]
[1730715495693,0.433418,68905.0,68904.0,0.002]
[1730715496095,0.433418,68905.0,68898.0,0.05744507]
[1730715496297,0.072624,68899.0,68898.0,0.05744507]
[1730715496991,0.433424,68899.0,68898.0,0.05744507]
[1730715497191,0.072626,68897.0,68896.0,0.05744507]
[1730715497382,0.072626,68897.0,68896.0,0.05745939]
[1730715497691,0.072628,68895.0,68894.0,0.13008839]
[1730715497894,0.072628,68895.0,68894.0,0.05745939]
[1730715499085,0.072628,68895.0,68891.0,0.072632]
[1730715499086,0.072631,68892.0,68891.0,0.072632]
[1730715500288,0.073631,68892.0,68891.0,0.086632]
[1730715500889,0.074631,68892.0,68891.0,0.100632]
[1730715503790,0.074631,68892.0,68891.0,0.028]
[1730715506093,0.074631,68892.0,68891.0,0.100632]
[1730715509092,0.3927,68910.0,68891.0,1.13036849]
[1730715509283,0.0319,68910.0,68902.0,0.05743847]
[1730715509490,0.072619,68904.0,68903.0,0.07262]
[1730715510502,0.074619,68904.0,68903.0,0.07262]
[1730715511795,0.078619,68904.0,68903.0,0.07262]
[1730715512503,0.074619,68904.0,68903.0,0.07262]
[1730715512690,0.072619,68904.0,68903.0,0.07462]
[1730715512891,0.072619,68904.0,68903.0,0.07862]
[1730715513994,0.072619,68904.0,68903.0,0.15042511]
[1730715514192,0.3608,68909.0,68905.0,0.072614]
[1730715514193,0.072617,68906.0,68905.0,0.072614]
[1730715515595,0.072617,68906.0,68905.0,0.074614]
[1730715515801,0.072617,68906.0,68905.0,0.002]
[1730715515996,0.072615,68908.0,68907.0,0.072614]
[1730715518905,0.002,68908.0,68907.0,0.21225584]
[1730715520010,0.3608,68917.0,68916.0,0.072606]
[1730715520209,0.3608,68928.0,68925.0,0.072596]
[1730715520513,0.072598,68926.0,68925.0,0.072596]
[1730715521401,0.3608,68928.0,68916.0,0.13964184]
[1730715521604,0.072609,68916.0,68915.0,0.072606]
[1730715521997,0.072612,68913.0,68912.0,0.07261]
[1730715522194,0.072613,68909.0,68908.0,0.072614]
[1730715523407,0.073613,68909.0,68908.0,0.072614]
[1730715524200,0.072617,68906.0,68905.0,0.433417]
[1730715525111,0.072619,68904.0,68903.0,0.07700403]
[1730715525412,0.03633875,68904.0,68903.0,0.14962403]
[1730715525605,0.03633875,68904.0,68903.0,0.3147756]
[1730715526416,0.03633875,68904.0,68903.0,0.11572233]
[1730715527113,0.03633875,68904.0,68903.0,0.20234233]
[1730715527511,0.03633875,68904.0,68903.0,0.12972233]
[1730715527814,0.03633875,68904.0,68903.0,0.0858183]
[1730715528113,0.03733875,68904.0,68903.0,0.0998183]
[1730715530614,0.03733875,68904.0,68903.0,0.028]
[1730715531511,0.03733875,68904.0,68903.0,0.08547494]
[1730715533306,0.03733875,68904.0,68901.0,0.05750752]
[1730715533307,0.47273875,68904.0,68901.0,0.05750752]
[1730715533614,0.072626,68897.0,68896.0,0.0718183]
[1730715533815,0.072626,68897.0,68895.0,0.0718183]
[1730715533816,0.072627,68896.0,68895.0,0.0718183]
[1730715534115,0.105527,68896.0,68895.0,0.16508464]
[1730715535017,0.072629,68894.0,68893.0,0.0718183]
[1730715535213,0.072629,68894.0,68892.0,0.0718183]
[1730715535214,0.07263,68893.0,68892.0,0.0718183]
[1730715535416,0.07263,68893.0,68892.0,0.16516864]
[1730715536705,0.07263,68893.0,68891.0,0.00217705]
[1730715536706,0.072631,68892.0,68891.0,0.00217705]
[1730715536919,0.15195376,68892.0,68891.0,0.00217705]
[1730715538618,0.15295376,68892.0,68891.0,0.00217705]
[1730715539426,0.15395376,68892.0,68891.0,0.00217705]
[1730715539715,0.11133671,68892.0,68891.0,0.00217705]
[1730715540227,0.1112572,68892.0,68891.0,0.00217705]
[1730715541622,0.1112572,68892.0,68891.0,0.07480905]
[1730715542016,4.5,69024.0,68891.0,0.07480905]
[1730715542017,0.072626,68898.0,68897.0,0.072624]
[1730715542518,0.00217768,68906.0,68897.0,0.072624]
[1730715542715,0.433421,68903.0,68902.0,0.21226284]
[1730715542921,0.07479568,68906.0,68905.0,0.072618]
[1730715544629,0.07479568,68906.0,68905.0,0.16582543]
[1730715544828,0.07479568,68906.0,68905.0,0.16982543]
[1730715545727,0.00217768,68906.0,68905.0,0.16982543]
[1730715545922,0.07479468,68906.0,68905.0,0.16982543]
[1730715546126,0.07479468,68906.0,68905.0,0.17182543]
[1730715546820,0.07479468,68906.0,68905.0,0.21609503]
[1730715547015,0.07479468,68906.0,68905.0,0.14347703]
[1730715547227,0.07479468,68906.0,68905.0,0.006]
[1730715547934,0.51015468,68906.0,68905.0,0.006]
[1730715548316,1.15015468,68906.0,68905.0,0.006]
[1730715548727,0.072626,68897.0,68895.0,0.07183974]
[1730715548928,0.072627,68896.0,68895.0,0.07183974]
[1730715549225,0.072627,68896.0,68895.0,0.16547524]
[1730715549424,0.072627,68896.0,68895.0,0.0936355]
[1730715549839,0.072627,68896.0,68895.0,0.1662635]
[1730715550021,0.072627,68896.0,68895.0,0.30590534]
[1730715550323,0.072627,68896.0,68895.0,0.32490534]
[1730715550920,0.073627,68896.0,68895.0,0.32490534]
[1730715551117,0.001,68896.0,68895.0,0.32490534]
[1730715551715,0.04314153,68896.0,68895.0,0.23126984]
[1730715551933,0.04414153,68896.0,68895.0,0.22926984]
[1730715552135,0.1528704,68896.0,68895.0,0.22926984]
[1730715553120,0.20068667,68896.0,68895.0,0.22926984]
[1730715553634,0.0802434,68896.0,68895.0,0.22926984]
[1730715554019,0.15866565,68896.0,68895.0,0.22926984]
[1730715554226,0.1528704,68896.0,68895.0,0.089628]
[1730715554728,0.1528704,68896.0,68895.0,0.017]
[1730715555332,0.1528704,68896.0,68895.0,0.089628]
[1730715557837,0.0802434,68896.0,68895.0,0.22926984]
[1730715558045,0.12831053,68896.0,68895.0,0.22926984]
[1730715559626,0.002,68896.0,68895.0,0.86981646]
[1730715559832,0.07479468,68906.0,68905.0,0.072618]
[1730715560024,0.43559468,68906.0,68905.0,0.09336947]
[1730715560225,0.43559468,68906.0,68903.0,0.07187285]
[1730715560430,0.07262,68903.0,68902.0,0.07187285]
[1730715560640,0.072621,68902.0,68901.0,0.07187285]
[1730715560828,0.072622,68901.0,68900.0,0.07187285]
[1730715561029,0.072622,68901.0,68900.0,0.16544669]
[1730715561230,0.072622,68901.0,68900.0,0.16544644]
[1730715561932,0.072622,68901.0,68900.0,0.23806944]
[1730715562129,0.072622,68901.0,68900.0,0.07187285]
[1730715562436,0.073622,68901.0,68900.0,0.08387285]
[1730715563535,0.073622,68901.0,68900.0,0.09187285]
[1730715563536,0.074622,68901.0,68900.0,0.09187285]
[1730715563841,0.074622,68901.0,68900.0,0.16449585]
[1730715565040,0.074622,68901.0,68900.0,0.18623824]
[1730715565830,0.074622,68901.0,68900.0,0.25812455]
[1730715566830,0.15321365,68901.0,68900.0,0.092623]
[1730715567539,0.15321365,68901.0,68900.0,0.23226484]
[1730715567540,0.0383674,68901.0,68900.0,0.23226484]
[1730715567842,0.0383674,68901.0,68900.0,0.59306484]
[1730715569734,0.0383674,68901.0,68900.0,0.23226484]
[1730715572335,0.0383674,68901.0,68900.0,0.092623]
[1730715573942,0.074622,68901.0,68900.0,0.25788138]
[1730715576451,0.074622,68901.0,68900.0,0.18599507]
[1730715576740,0.074622,68901.0,68900.0,0.25790108]
[1730715576947,0.074622,68901.0,68900.0,0.16452901]
[1730715577344,0.074622,68901.0,68900.0,0.25796095]
[1730715579651,0.074622,68901.0,68900.0,0.092623]
[1730715581838,0.074622,68901.0,68900.0,0.27245629]
[1730715583037,0.074622,68901.0,68900.0,0.17886536]
[1730715584450,0.074622,68901.0,68900.0,0.092623]
[1730715585539,0.074622,68901.0,68900.0,0.23226484]
[1730715586147,0.002,68901.0,68900.0,0.23226484]
[1730715588348,0.002,68901.0,68900.0,0.43796594]
[1730715588744,0.002,68901.0,68900.0,0.32610822]
[1730715590247,0.002,68901.0,68900.0,0.23226484]
[1730715590450,0.03835126,68901.0,68900.0,0.23226484]
[1730715590949,0.11097326,68901.0,68900.0,0.23226484]
[1730715591443,0.11097326,68901.0,68900.0,0.092623]
[1730715591849,0.03835126,68901.0,68900.0,0.092623]
[1730715592250,0.03835126,68901.0,68900.0,0.23226484]
[1730715594648,0.11097326,68901.0,68900.0,0.23226484]
[1730715595052,0.03835126,68901.0,68900.0,0.23226484]
[1730715596648,0.03824383,68901.0,68900.0,0.23226484]
[1730715597160,0.002,68901.0,68900.0,0.32613139]
[1730715597362,0.002,68901.0,68900.0,0.43801609]
[1730715599363,0.002,68901.0,68900.0,0.38994062]
[1730715599557,0.074622,68901.0,68900.0,0.38994062]
[1730715599964,0.074622,68901.0,68900.0,0.27805592]
[1730715600360,0.074622,68901.0,68900.0,0.11386655]
[1730715600559,0.435422,68901.0,68900.0,0.20026089]
[1730715600859,0.435422,68901.0,68900.0,0.11399483]
[1730715601352,0.470122,68901.0,68900.0,0.11399483]
[1730715604473,0.470122,68901.0,68900.0,0.11413851]
[1730715605160,0.470122,68901.0,68900.0,0.02]
[1730715605161,0.54770955,68901.0,68900.0,0.02]
[1730715606573,1.03045644,68901.0,68900.0,0.02]
[1730715606869,1.09995644,68901.0,68900.0,0.02]
[1730715607072,0.072631,68892.0,68891.0,0.00217705]
[1730715607283,0.16419737,68892.0,68891.0,0.00217705]
[1730715607464,0.28901965,68892.0,68891.0,0.00217705]
[1730715607976,0.28901965,68892.0,68891.0,0.04494691]
[1730715608173,0.19745328,68892.0,68891.0,0.04494691]
[1730715608474,0.15121855,68892.0,68891.0,0.05694691]
[1730715608679,0.15065925,68892.0,68891.0,0.05694691]
[1730715609172,0.15065925,68892.0,68891.0,0.14851328]
[1730715610166,0.15165925,68892.0,68891.0,0.14851328]
[1730715610565,0.15165925,68892.0,68891.0,0.22114528]
[1730715610764,0.03764395,68892.0,68891.0,0.31271165]
[1730715610967,0.03764395,68892.0,68891.0,0.22114528]
[1730715612170,0.072629,68895.0,68891.0,0.35483254]
[1730715612364,0.072629,68895.0,68894.0,0.16419537]
[1730715612575,0.072629,68895.0,68894.0,0.25819755]
[1730715612772,0.072629,68895.0,68894.0,0.16663118]
[1730715612976,0.16419537,68895.0,68894.0,0.09400218]
[1730715613374,0.072629,68895.0,68894.0,0.09400218]
[1730715613571,0.434429,68895.0,68893.0,0.07179055]
[1730715613779,0.435429,68895.0,68892.0,0.07179055]
[1730715614082,0.435429,68895.0,68891.0,0.0749676]
[1730715614083,0.072631,68892.0,68891.0,0.0749676]
[1730715614376,0.072631,68892.0,68891.0,0.00217705]
[1730715615081,0.072631,68892.0,68890.0,0.07179055]
[1730715615082,0.072634,68889.0,68888.0,0.07179055]
[1730715615278,0.072636,68888.0,68887.0,0.07179055]
[1730715615475,0.072636,68888.0,68887.0,0.16612352]
[1730715615673,0.072636,68888.0,68887.0,0.07178101]
[1730715616287,0.072636,68888.0,68887.0,0.1661281]
[1730715616474,0.072636,68888.0,68887.0,0.16607957]
[1730715617583,0.072636,68888.0,68887.0,0.16907957]
[1730715617584,0.073636,68888.0,68887.0,0.16907957]
[1730715618081,0.074636,68888.0,68887.0,0.004]
[1730715622283,0.074636,68888.0,68887.0,0.0479907]
[1730715628479,0.074636,68888.0,68887.0,0.11976648]
[1730715628674,0.074636,68888.0,68887.0,0.21414342]
[1730715629276,0.074636,68888.0,68887.0,0.14236764]
[1730715629490,0.64967965,68888.0,68887.0,0.0479907]